[Event "94th FRA-ch Open C 2019"]
[Site "Chartres"]
[Date "2019.08.17"]
[Round "1.1"]
[White "Cresswell, Patrick"]
[Black "Leclerc, Alain"]
[Result "0-1"]
[ECO "D02"]
[WhiteElo "1664"]
[BlackElo "1787"]
[Annotator "NA"]
[PlyCount "56"]
[EventDate "2019.08.17"]
[EventType "swiss"]
[EventCountry "FRA"]
[SourceTitle "playchess.com"]
[Source "ChessBase"]
[SourceQuality "1"]
[TimeControl "40/5400+30:1800+30"]

1. d4 {[%emt 0:00:00]} d5 {[%emt 0:00:00]} 2. Bf4 {[%emt 0:00:00]} c6 {[%emt 0:00:13]} 3. Nf3 {[%emt 0:00:26]} f5 {[%emt 0:01:55]} 4. e3 {[%emt 0:03:12]} Nf6 {[%emt 0:00:14]} 5. h3 {[%emt 0:03:10]} e6 {[%emt 0:00:32]} 6. Nbd2 {[%emt 0:00:24]} Bd6 {[%emt 0:02:18]} 7. Ne5 {[%emt 0:01:09]} Qe7 {[%emt 0:02:37]} 8. Bd3 {[%emt 0:02:50]} O-O {[%emt 0:04:25]} 9. g4 {[%emt 0:05:48]} Ne4 {[%emt 0:00:57]} 10. Bxe4 {[%emt 0:03:26]} fxe4 {[%emt 0:00:10]} 11. g5 {[%emt 0:02:27]} Bxe5 {[%emt 0:03:06]} 12. dxe5 {[%emt 0:03:04]} Nd7 {[%emt 0:03:51]} 13. c3 {[%emt 0:07:31]} Nc5 {[%emt 0:08:58]} 14. Qg4 {[%emt 0:06:46]} Nd3+ {[%emt 0:00:58]} 15. Ke2 {[%emt 0:00:59]} Rf5 {[%emt 0:11:03]} 16. Qg3 {[%emt 0:05:41]} b6 {[%emt 0:01:29]} 17. Rab1 {[%emt 0:02:05]} Ba6 {[%emt 0:00:14]} 18. Kd1 {[%emt 0:00:16]} Raf8 {[%emt 0:02:00]} 19. f3 {[%emt 0:05:48]} Nxf4 {[%emt 0:03:53]} 20. exf4 {[%emt 0:01:06]} e3 {[%emt 0:01:28]} 21. Nb3 {[%emt 0:01:15]} c5 {[%emt 0:00:03]} 22. Qe1 {[%emt 0:01:58]} Rxf4 {[%emt 0:05:19]} 23. Nc1 {[%emt 0:04:48]} Rxf3 {[%emt 0:00:20]} 24. Ne2 {[%emt 0:00:52]} Bd3 {[%emt 0:06:10]} 25. Ra1 {[%emt 0:00:05]} Rf2 {[%emt 0:01:15]} 26. Ng3 {[%emt 0:00:38]} Qxg5 {[%emt 0:01:19]} 27. Rg1 {[%emt 0:03:38]} Qxe5 {[%emt 0:06:28]} 28. Qxe3 {[%emt 0:03:25]} Qxe3 {[%emt 0:00:11]} 0-1

[Event "94th FRA-ch Open C 2019"]
[Site "Chartres"]
[Date "2019.08.17"]
[Round "1.2"]
[White "Nguyen, Angeline"]
[Black "Ferrandi, Bernard"]
[Result "1-0"]
[ECO "C50"]
[WhiteElo "1766"]
[BlackElo "1660"]
[Annotator "NA"]
[PlyCount "55"]
[EventDate "2019.08.17"]
[EventType "swiss"]
[EventCountry "FRA"]
[SourceTitle "playchess.com"]
[Source "ChessBase"]
[SourceQuality "1"]
[TimeControl "40/5400+30:1800+30"]

1. e4 {[%emt 0:00:00]} e5 {[%emt 0:00:00]} 2. Nf3 {[%emt 0:00:00]} Nc6 {[%emt 0:00:00]} 3. Bc4 {[%emt 0:00:11]} d6 {[%emt 0:00:31]} 4. c3 {[%emt 0:02:03]} Bg4 {[%emt 0:03:47]} 5. d3 {[%emt 0:16:05]} a6 {[%emt 0:01:59]} 6. Be3 {[%emt 0:13:07]} f5 {[%emt 0:12:34]} 7. Qb3 {[%emt 0:12:24]} f4 {[%emt 0:06:47]} 8. Bxg8 {[%emt 0:12:13]} Rxg8 {[%emt 0:02:23]} 9. Qxg8 {[%emt 0:00:07]} fxe3 {[%emt 0:00:26]} 10. fxe3 {[%emt 0:00:18]} Bxf3 {[%emt 0:03:54]} 11. Qe6+ {[%emt 0:01:03]} Qe7 {[%emt 0:00:12]} 12. Qxe7+ {[%emt 0:00:06]} Bxe7 {[%emt 0:00:08]} 13. gxf3 {[%emt 0:00:08]} Bh4+ {[%emt 0:00:17]} 14. Ke2 {[%emt 0:00:15]} O-O-O {[%emt 0:00:24]} 15. Nd2 {[%emt 0:00:16]} d5 {[%emt 0:01:05]} 16. exd5 {[%emt 0:01:16]} Rxd5 {[%emt 0:00:11]} 17. Ne4 {[%emt 0:01:38]} Rd7 {[%emt 0:03:08]} 18. Rhg1 {[%emt 0:01:13]} h6 {[%emt 0:03:31]} 19. Rg6 {[%emt 0:00:59]} Rf7 {[%emt 0:01:59]} 20. Rag1 {[%emt 0:00:31]} Bf6 {[%emt 0:00:12]} 21. Nxf6 {[%emt 0:00:15]} gxf6 {[%emt 0:00:07]} 22. Rxh6 {[%emt 0:00:42]} Nd8 {[%emt 0:01:56]} 23. h4 {[%emt 0:04:01]} Kd7 {[%emt 0:00:28]} 24. h5 {[%emt 0:00:37]} Ne6 {[%emt 0:00:42]} 25. Rhg6 {[%emt 0:01:39]} Ke7 {[%emt 0:01:34]} 26. h6 {[%emt 0:01:46]} Rh7 {[%emt 0:01:41]} 27. Rg7+ {[%emt 0:02:47]} Nxg7 {[%emt 0:01:12]} 28. hxg7 {[%emt 0:00:08]} 1-0

[Event "94th FRA-ch Open C 2019"]
[Site "Chartres"]
[Date "2019.08.17"]
[Round "1.3"]
[White "Beaulier, Benjamin"]
[Black "Demey, Pierre"]
[Result "0-1"]
[ECO "B20"]
[WhiteElo "1658"]
[BlackElo "1757"]
[Annotator "NA"]
[PlyCount "98"]
[EventDate "2019.08.17"]
[EventType "swiss"]
[EventCountry "FRA"]
[SourceTitle "playchess.com"]
[Source "ChessBase"]
[SourceQuality "1"]
[TimeControl "40/5400+30:1800+30"]

1. e4 {[%emt 0:00:00]} c5 {[%emt 0:00:00]} 2. d3 {[%emt 0:00:00]} Nc6 {[%emt 0:00:00]} 3. g3 {[%emt 0:00:00]} g6 {[%emt 0:00:00]} 4. Bg2 {[%emt 0:00:00]} Bg7 {[%emt 0:00:00]} 5. f4 {[%emt 0:00:26]} e6 {[%emt 0:00:23]} 6. Nf3 {[%emt 0:01:20]} Nge7 {[%emt 0:00:21]} 7. O-O {[%emt 0:01:04]} d5 {[%emt 0:00:45]} 8. e5 {[%emt 0:08:22]} O-O {[%emt 0:00:51]} 9. c3 {[%emt 0:03:47]} Rb8 {[%emt 0:04:35]} 10. Na3 {[%emt 1:20:01]} b5 {[%emt 0:05:17]} 11. Nc2 {[%emt 0:00:00]} c4 {[%emt 0:06:51]} 12. Be3 {[%emt 0:00:00]} a5 {[%emt 0:07:46]} 13. Bc5 {[%emt 0:00:00]} Re8 {[%emt 0:02:36]} 14. Qe2 {[%emt 0:00:00]} Ba6 {[%emt 0:04:31]} 15. Rfd1 {[%emt 0:00:00]} b4 {[%emt 0:04:28]} 16. d4 {[%emt 0:00:00]} Qd7 {[%emt 0:08:58]} 17. Bh3 {[%emt 0:00:00]} Bb5 {[%emt 0:17:15]} 18. Ne3 {[%emt 0:00:00]} Ba4 {[%emt 0:05:45]} 19. Rf1 {[%emt 0:00:00]} bxc3 {[%emt 0:04:07]} 20. bxc3 {[%emt 0:00:00]} Nf5 {[%emt 0:01:16]} 21. Nxf5 {[%emt 0:00:00]} exf5 {[%emt 0:00:40]} 22. Nh4 {[%emt 0:00:00]} Nd8 {[%emt 0:02:54]} 23. g4 {[%emt 0:00:00]} fxg4 {[%emt 0:00:36]} 24. Bxg4 {[%emt 0:00:00]} f5 {[%emt 0:04:42]} 25. Bh3 {[%emt 0:00:00]} Ne6 {[%emt 0:00:50]} 26. Ba3 {[%emt 0:00:00]} Rb7 {[%emt 0:01:00]} 27. Bg2 {[%emt 0:00:00]} Bh6 {[%emt 0:01:21]} 28. Nxf5 {[%emt 0:04:46]} gxf5 {[%emt 0:01:25]} 29. Qh5 {[%emt 0:02:11]} Bf8 {[%emt 0:03:53]} 30. Bxf8 {[%emt 0:00:59]} Rxf8 {[%emt 0:00:17]} 31. Bh3 {[%emt 0:00:46]} Qg7+ {[%emt 0:01:01]} 32. Kh1 {[%emt 0:02:18]} Bc2 {[%emt 0:04:03]} 33. Rg1 {[%emt 0:00:00]} Be4+ {[%emt 0:00:06]} 34. Bg2 {[%emt 0:00:00]} Nxf4 {[%emt 0:00:25]} 35. Bxe4 {[%emt 0:00:00]} Nxh5 {[%emt 0:00:08]} 36. Rxg7+ {[%emt 0:00:33]} Rxg7 {[%emt 0:00:43]} 37. Bxd5+ {[%emt 0:00:07]} Kh8 {[%emt 0:00:16]} 38. Bxc4 {[%emt 0:00:20]} Nf4 {[%emt 0:00:33]} 39. Bf1 {[%emt 0:00:37]} Rfg8 {[%emt 0:01:01]} 40. h3 {[%emt 0:00:41]} Rg1+ {[%emt 0:01:32]} 41. Kh2 {[%emt 0:30:10]} Nd5 {[%emt 0:30:58]} 42. Re1 {[%emt 0:02:32]} Nxc3 {[%emt 0:00:59]} 43. e6 {[%emt 0:00:00]} Nd5 {[%emt 0:01:26]} 44. e7 {[%emt 0:00:06]} Nxe7 {[%emt 0:00:28]} 45. Rxe7 {[%emt 0:00:18]} Rxf1 {[%emt 0:00:04]} 46. d5 {[%emt 0:00:29]} Rd1 {[%emt 0:00:47]} 47. Re5 {[%emt 0:00:19]} f4 {[%emt 0:00:49]} 48. Rf5 {[%emt 0:00:16]} Rd2+ {[%emt 0:00:27]} 49. Kh1 {[%emt 0:00:15]} Re8 {[%emt 0:05:21]} 0-1

[Event "94th FRA-ch Open C 2019"]
[Site "Chartres"]
[Date "2019.08.17"]
[Round "1.5"]
[White "Chaillou, Vincent"]
[Black "Pionnier, Camille"]
[Result "1-0"]
[ECO "C30"]
[WhiteElo "1654"]
[BlackElo "1749"]
[Annotator "NA"]
[PlyCount "55"]
[EventDate "2019.08.17"]
[EventType "swiss"]
[EventCountry "FRA"]
[SourceTitle "playchess.com"]
[Source "ChessBase"]
[SourceQuality "1"]
[TimeControl "40/5400+30:1800+30"]

1. e4 {[%emt 0:00:00]} e5 {[%emt 0:00:00]} 2. f4 {[%emt 0:00:00]} Bc5 {[%emt 0:00:00]} 3. Nf3 {[%emt 0:00:00]} d6 {[%emt 0:00:25]} 4. c3 {[%emt 0:04:40]} Bg4 {[%emt 0:16:53]} 5. fxe5 {[%emt 0:12:36]} dxe5 {[%emt 0:03:04]} 6. Bc4 {[%emt 0:02:44]} Qf6 {[%emt 0:12:44]} 7. d3 {[%emt 0:03:14]} Nc6 {[%emt 0:06:00]} 8. b4 {[%emt 0:03:56]} Bb6 {[%emt 0:01:19]} 9. a4 {[%emt 0:01:14]} a5 {[%emt 0:00:50]} 10. b5 {[%emt 0:00:34]} Nd8 {[%emt 0:04:42]} 11. Rf1 {[%emt 0:12:32]} Ne6 {[%emt 0:14:59]} 12. h3 {[%emt 0:07:02]} Bxf3 {[%emt 0:03:09]} 13. Qxf3 {[%emt 0:00:23]} Qe7 {[%emt 0:02:07]} 14. Ba3 {[%emt 0:01:04]} Qd7 {[%emt 0:03:12]} 15. Qh5 {[%emt 0:05:38]} O-O-O {[%emt 0:09:21]} 16. Rxf7 {[%emt 0:04:47]} Qe8 {[%emt 0:03:21]} 17. Qf5 {[%emt 0:02:51]} Nh6 {[%emt 0:02:19]} 18. Qxe6+ {[%emt 0:00:39]} Qxe6 {[%emt 0:00:31]} 19. Bxe6+ {[%emt 0:00:11]} Kb8 {[%emt 0:00:13]} 20. Rf3 {[%emt 0:00:47]} Rhe8 {[%emt 0:02:01]} 21. Bc4 {[%emt 0:00:37]} Rd7 {[%emt 0:01:09]} 22. Ke2 {[%emt 0:00:40]} Ng8 {[%emt 0:04:05]} 23. Bxg8 {[%emt 0:00:14]} Rxg8 {[%emt 0:00:04]} 24. Nd2 {[%emt 0:00:22]} g5 {[%emt 0:00:49]} 25. Raf1 {[%emt 0:00:47]} g4 {[%emt 0:01:46]} 26. Rf8+ {[%emt 0:01:24]} Rd8 {[%emt 0:02:08]} 27. Rxg8 {[%emt 0:00:31]} Rxg8 {[%emt 0:00:06]} 28. Rf8+ {[%emt 0:00:11]} 1-0

[Event "94th FRA-ch Open C 2019"]
[Site "Chartres"]
[Date "2019.08.17"]
[Round "1.6"]
[White "Silvera, Ruben"]
[Black "Penloup-Leboulanger, Marvin"]
[Result "1-0"]
[ECO "C88"]
[WhiteElo "1747"]
[BlackElo "1652"]
[Annotator "NA"]
[PlyCount "63"]
[EventDate "2019.08.17"]
[EventType "swiss"]
[EventCountry "FRA"]
[SourceTitle "playchess.com"]
[Source "ChessBase"]
[SourceQuality "1"]
[TimeControl "40/5400+30:1800+30"]

1. e4 {[%emt 0:00:00]} e5 {[%emt 0:00:00]} 2. Nf3 {[%emt 0:00:00]} Nc6 {[%emt 0:00:00]} 3. Bb5 {[%emt 0:00:00]} a6 {[%emt 0:00:00]} 4. Ba4 {[%emt 0:00:00]} Nf6 {[%emt 0:00:00]} 5. O-O {[%emt 0:00:00]} b5 {[%emt 0:00:00]} 6. Bb3 {[%emt 0:00:01]} Be7 {[%emt 0:00:03]} 7. Re1 {[%emt 0:04:22]} O-O {[%emt 0:00:15]} 8. d4 {[%emt 0:00:10]} Nxd4 {[%emt 0:02:14]} 9. Bxf7+ {[%emt 0:00:19]} Rxf7 {[%emt 0:00:51]} 10. Nxe5 {[%emt 0:01:13]} Bc5 {[%emt 0:08:31]} 11. Nxf7 {[%emt 0:07:42]} Kxf7 {[%emt 0:00:30]} 12. e5 {[%emt 0:00:47]} Ne8 {[%emt 0:01:10]} 13. c3 {[%emt 0:03:47]} Qh4 {[%emt 0:04:34]} 14. Be3 {[%emt 0:09:45]} Bb7 {[%emt 0:09:36]} 15. cxd4 {[%emt 0:00:32]} Bb6 {[%emt 0:02:28]} 16. h3 {[%emt 0:06:59]} Qe4 {[%emt 0:02:51]} 17. Qg4 {[%emt 0:01:45]} d6 {[%emt 0:09:07]} 18. Qxe4 {[%emt 0:05:40]} Bxe4 {[%emt 0:00:21]} 19. Nc3 {[%emt 0:00:27]} Bg6 {[%emt 0:04:00]} 20. Rad1 {[%emt 0:07:23]} c5 {[%emt 0:12:11]} 21. exd6 {[%emt 0:01:26]} cxd4 {[%emt 0:01:07]} 22. Bxd4 {[%emt 0:00:12]} Bxd4 {[%emt 0:00:40]} 23. Rxd4 {[%emt 0:00:19]} Rd8 {[%emt 0:00:34]} 24. Red1 {[%emt 0:03:33]} Nf6 {[%emt 0:01:28]} 25. a4 {[%emt 0:02:12]} bxa4 {[%emt 0:01:39]} 26. Nxa4 {[%emt 0:00:21]} Bf5 {[%emt 0:01:57]} 27. Nc5 {[%emt 0:00:21]} a5 {[%emt 0:00:58]} 28. Nb7 {[%emt 0:00:51]} Rb8 {[%emt 0:00:07]} 29. d7 {[%emt 0:00:34]} Nxd7 {[%emt 0:00:22]} 30. Rxd7+ {[%emt 0:00:06]} Bxd7 {[%emt 0:00:07]} 31. Rxd7+ {[%emt 0:00:05]} Kf6 {[%emt 0:00:08]} 32. b3 {[%emt 0:00:17]} 1-0

[Event "94th FRA-ch Open C 2019"]
[Site "Chartres"]
[Date "2019.08.18"]
[Round "2.1"]
[White "Leclerc, Alain"]
[Black "Shefay, Paul"]
[Result "1-0"]
[ECO "C02"]
[WhiteElo "1787"]
[BlackElo "1680"]
[Annotator "NA"]
[PlyCount "53"]
[EventDate "2019.08.17"]
[EventType "swiss"]
[EventCountry "FRA"]
[SourceTitle "playchess.com"]
[Source "ChessBase"]
[SourceQuality "1"]
[TimeControl "40/5400+30:1800+30"]

1. e4 {[%emt 0:00:00]} e6 {[%emt 0:00:18]} 2. d4 {[%emt 0:00:00]} d5 {[%emt 0:00:09]} 3. e5 {[%emt 0:00:22]} c5 {[%emt 0:01:47]} 4. c3 {[%emt 0:00:06]} Nc6 {[%emt 0:00:28]} 5. Nf3 {[%emt 0:00:07]} cxd4 {[%emt 0:01:03]} 6. cxd4 {[%emt 0:00:08]} Bb4+ {[%emt 0:01:08]} 7. Nc3 {[%emt 0:01:24]} Nge7 {[%emt 0:00:53]} 8. Bd3 {[%emt 0:05:37]} Qb6 {[%emt 0:05:06]} 9. O-O {[%emt 0:00:25]} Nxd4 {[%emt 0:06:39]} 10. Nxd4 {[%emt 0:00:55]} Bd7 {[%emt 0:02:28]} 11. Nc2 {[%emt 0:07:03]} Bxc3 {[%emt 0:01:48]} 12. bxc3 {[%emt 0:00:06]} Nf5 {[%emt 0:00:29]} 13. Bxf5 {[%emt 0:02:07]} exf5 {[%emt 0:00:01]} 14. Qxd5 {[%emt 0:00:23]} Bc6 {[%emt 0:00:22]} 15. Qb3 {[%emt 0:02:20]} Qc7 {[%emt 0:03:09]} 16. Ba3 {[%emt 0:00:43]} O-O-O {[%emt 0:00:39]} 17. Bd6 {[%emt 0:00:22]} Qd7 {[%emt 0:01:10]} 18. Nd4 {[%emt 0:01:23]} b6 {[%emt 0:03:26]} 19. Qc4 {[%emt 0:01:16]} Kb7 {[%emt 0:00:39]} 20. Qxc6+ {[%emt 0:00:18]} Qxc6 {[%emt 0:00:10]} 21. Nxc6 {[%emt 0:00:03]} Kxc6 {[%emt 0:00:06]} 22. f4 {[%emt 0:00:23]} f6 {[%emt 0:00:25]} 23. Rfd1 {[%emt 0:00:19]} h5 {[%emt 0:09:47]} 24. Rd4 {[%emt 0:01:54]} fxe5 {[%emt 0:01:33]} 25. fxe5 {[%emt 0:00:30]} g5 {[%emt 0:01:07]} 26. Rad1 {[%emt 0:00:10]} Rc8 {[%emt 0:01:31]} 27. e6 {[%emt 0:01:10]} 1-0

[Event "94th FRA-ch Open C 2019"]
[Site "Chartres"]
[Date "2019.08.18"]
[Round "2.2"]
[White "Bele, Charles"]
[Black "Nguyen, Angeline"]
[Result "1-0"]
[ECO "B07"]
[WhiteElo "1678"]
[BlackElo "1766"]
[Annotator "NA"]
[PlyCount "39"]
[EventDate "2019.08.17"]
[EventType "swiss"]
[EventCountry "FRA"]
[SourceTitle "playchess.com"]
[Source "ChessBase"]
[SourceQuality "1"]
[TimeControl "40/5400+30:1800+30"]

1. e4 {[%emt 0:00:00]} d6 {[%emt 0:00:00]} 2. d4 {[%emt 0:00:12]} Nf6 {[%emt 0:00:00]} 3. Nc3 {[%emt 0:00:42]} g6 {[%emt 0:00:05]} 4. Bg5 {[%emt 0:05:10]} Bg7 {[%emt 0:00:53]} 5. f4 {[%emt 0:17:42]} c6 {[%emt 0:04:25]} 6. Qd2 {[%emt 0:11:56]} b5 {[%emt 0:05:43]} 7. a3 {[%emt 0:07:27]} O-O {[%emt 0:20:50]} 8. Nf3 {[%emt 0:00:43]} Bb7 {[%emt 0:05:09]} 9. Bd3 {[%emt 0:03:55]} a5 {[%emt 0:04:09]} 10. O-O {[%emt 0:05:30]} Na6 {[%emt 0:08:15]} 11. e5 {[%emt 0:06:29]} dxe5 {[%emt 0:01:57]} 12. fxe5 {[%emt 0:02:15]} Nd7 {[%emt 0:02:24]} 13. Bh6 {[%emt 0:03:21]} b4 {[%emt 0:02:53]} 14. Ne4 {[%emt 0:03:55]} c5 {[%emt 0:01:32]} 15. Bxg7 {[%emt 0:01:53]} Kxg7 {[%emt 0:00:48]} 16. Nfg5 {[%emt 0:06:08]} cxd4 {[%emt 0:04:19]} 17. Rxf7+ {[%emt 0:03:14]} Kg8 {[%emt 0:01:30]} 18. Rg7+ {[%emt 0:02:40]} Kh8 {[%emt 0:00:27]} 19. Rxh7+ {[%emt 0:00:08]} Kg8 {[%emt 0:00:12]} 20. Bc4+ {[%emt 0:00:11]} 1-0

[Event "94th FRA-ch Open C 2019"]
[Site "Chartres"]
[Date "2019.08.18"]
[Round "2.3"]
[White "Demey, Pierre"]
[Black "Lefort, Thibaut"]
[Result "1-0"]
[ECO "B77"]
[WhiteElo "1757"]
[BlackElo "1675"]
[Annotator "NA"]
[PlyCount "37"]
[EventDate "2019.08.17"]
[EventType "swiss"]
[EventCountry "FRA"]
[SourceTitle "playchess.com"]
[Source "ChessBase"]
[SourceQuality "1"]
[TimeControl "40/5400+30:1800+30"]

1. e4 {[%emt 0:00:00]} c5 {[%emt 0:00:28]} 2. Nc3 {[%emt 0:00:00]} g6 {[%emt 0:00:08]} 3. Nf3 {[%emt 0:00:00]} Bg7 {[%emt 0:00:08]} 4. d4 {[%emt 0:00:00]} cxd4 {[%emt 0:01:14]} 5. Nxd4 {[%emt 0:00:00]} Nc6 {[%emt 0:00:40]} 6. Be3 {[%emt 0:00:06]} a6 {[%emt 0:00:32]} 7. Bc4 {[%emt 0:02:26]} d6 {[%emt 0:06:11]} 8. Qd2 {[%emt 0:01:50]} Nxd4 {[%emt 0:06:25]} 9. Bxd4 {[%emt 0:01:16]} Nf6 {[%emt 0:00:07]} 10. O-O-O {[%emt 0:07:37]} O-O {[%emt 0:14:05]} 11. f3 {[%emt 0:01:18]} Qc7 {[%emt 0:01:17]} 12. Bb3 {[%emt 0:01:39]} Bd7 {[%emt 0:01:02]} 13. Bxf6 {[%emt 0:08:56]} Bxf6 {[%emt 0:01:18]} 14. Nd5 {[%emt 0:00:14]} Qc6 {[%emt 0:04:09]} 15. Nxf6+ {[%emt 0:02:08]} exf6 {[%emt 0:00:06]} 16. Qf4 {[%emt 0:07:19]} Kg7 {[%emt 0:02:41]} 17. Rxd6 {[%emt 0:00:27]} Qb5 {[%emt 0:01:06]} 18. Qxf6+ {[%emt 0:01:24]} Kg8 {[%emt 0:00:05]} 19. h4 {[%emt 1:02:50]} 1-0

[Event "94th FRA-ch Open C 2019"]
[Site "Chartres"]
[Date "2019.08.18"]
[Round "2.4"]
[White "Varin, Pierre-antoine"]
[Black "Silvera, Ruben"]
[Result "1-0"]
[ECO "C50"]
[WhiteElo "1677"]
[BlackElo "1747"]
[Annotator "NA"]
[PlyCount "95"]
[EventDate "2019.08.17"]
[EventType "swiss"]
[EventCountry "FRA"]
[SourceTitle "playchess.com"]
[Source "ChessBase"]
[SourceQuality "1"]
[TimeControl "40/5400+30:1800+30"]

1. e4 {[%emt 0:00:00]} e5 {[%emt 0:00:00]} 2. Nf3 {[%emt 0:00:00]} Nc6 {[%emt 0:00:00]} 3. Bc4 {[%emt 0:00:00]} Bc5 {[%emt 0:00:00]} 4. d3 {[%emt 0:00:26]} Nf6 {[%emt 0:00:19]} 5. Nc3 {[%emt 0:00:19]} d6 {[%emt 0:03:20]} 6. Bg5 {[%emt 0:00:40]} h6 {[%emt 0:04:32]} 7. Bxf6 {[%emt 0:00:11]} Qxf6 {[%emt 0:00:08]} 8. Nd5 {[%emt 0:00:15]} Qd8 {[%emt 0:01:23]} 9. c3 {[%emt 0:00:31]} a6 {[%emt 0:05:26]} 10. d4 {[%emt 0:04:59]} Ba7 {[%emt 0:00:08]} 11. Ne3 {[%emt 0:02:32]} O-O {[%emt 0:02:38]} 12. dxe5 {[%emt 0:06:27]} dxe5 {[%emt 0:11:56]} 13. Qe2 {[%emt 0:05:21]} Bc5 {[%emt 0:03:57]} 14. O-O {[%emt 0:09:08]} g6 {[%emt 0:07:24]} 15. Rad1 {[%emt 0:04:42]} Bd6 {[%emt 0:00:24]} 16. Bd5 {[%emt 0:05:32]} Qe7 {[%emt 0:13:03]} 17. b4 {[%emt 0:02:45]} Be6 {[%emt 0:01:57]} 18. Rd3 {[%emt 0:06:14]} Bxd5 {[%emt 0:03:39]} 19. Nxd5 {[%emt 0:01:41]} Qe6 {[%emt 0:00:09]} 20. Qd2 {[%emt 0:02:04]} Kg7 {[%emt 0:02:16]} 21. c4 {[%emt 0:12:26]} Rfc8 {[%emt 0:06:39]} 22. c5 {[%emt 0:04:45]} Bf8 {[%emt 0:00:49]} 23. a3 {[%emt 0:02:37]} Kg8 {[%emt 0:08:39]} 24. Qb2 {[%emt 0:03:13]} Bg7 {[%emt 0:00:44]} 25. Rfd1 {[%emt 0:06:45]} Rab8 {[%emt 0:01:23]} 26. a4 {[%emt 0:01:34]} b6 {[%emt 0:00:31]} 27. b5 {[%emt 0:01:13]} bxc5 {[%emt 0:00:40]} 28. b6 {[%emt 0:03:06]} cxb6 {[%emt 0:02:25]} 29. Nxb6 {[%emt 0:01:11]} Nd4 {[%emt 0:05:25]} 30. a5 {[%emt 0:01:04]} c4 {[%emt 0:01:37]} 31. Rc3 {[%emt 0:02:03]} Rc5 {[%emt 0:02:04]} 32. Qa2 {[%emt 0:01:20]} Rxa5 {[%emt 0:01:15]} 33. Qxa5 {[%emt 0:01:14]} Ne2+ {[%emt 0:00:10]} 34. Kf1 {[%emt 0:03:12]} Nxc3 {[%emt 0:00:08]} 35. Nd7 {[%emt 0:00:57]} Nxd1 {[%emt 0:01:43]} 36. Nxb8 {[%emt 0:00:38]} c3 {[%emt 0:02:05]} 37. Qd8+ {[%emt 0:00:31]} Bf8 {[%emt 0:01:49]} 38. Qxd1 {[%emt 0:01:08]} Qa2 {[%emt 0:01:36]} 39. Ne1 {[%emt 0:01:25]} Qd2 {[%emt 0:00:43]} 40. Qe2 {[%emt 0:03:13]} a5 {[%emt 0:00:52]} 41. Nc6 {[%emt 0:31:53]} a4 {[%emt 0:30:51]} 42. Nxe5 {[%emt 0:00:54]} a3 {[%emt 0:00:27]} 43. Qc4 {[%emt 0:00:22]} Qf4 {[%emt 0:00:00]} 44. N1d3 {[%emt 0:00:00]} Qf6 {[%emt 0:00:00]} 45. Qxc3 {[%emt 0:00:00]} Qa6 {[%emt 0:00:00]} 46. Qb3 {[%emt 0:00:00]} Qa7 {[%emt 0:00:00]} 47. Qa2 {[%emt 0:00:00]} Kg7 {[%emt 0:00:00]} 48. Ke2 {[%emt 0:00:00]} 1-0

[Event "94th FRA-ch Open C 2019"]
[Site "Chartres"]
[Date "2019.08.18"]
[Round "2.5"]
[White "Stephan, Arthur"]
[Black "Sylvestre-Baron, Laurent"]
[Result "0-1"]
[ECO "E65"]
[WhiteElo "1675"]
[BlackElo "1743"]
[Annotator "NA"]
[PlyCount "66"]
[EventDate "2019.08.17"]
[EventType "swiss"]
[EventCountry "FRA"]
[SourceTitle "playchess.com"]
[Source "ChessBase"]
[SourceQuality "1"]
[TimeControl "40/5400+30:1800+30"]

1. d4 {[%emt 0:00:00]} Nf6 {[%emt 0:00:00]} 2. Nf3 {[%emt 0:00:00]} g6 {[%emt 0:00:00]} 3. g3 {[%emt 0:00:00]} Bg7 {[%emt 0:00:05]} 4. Bg2 {[%emt 0:00:00]} O-O {[%emt 0:00:23]} 5. O-O {[%emt 0:00:09]} d6 {[%emt 0:00:06]} 6. c4 {[%emt 0:00:55]} c5 {[%emt 0:00:12]} 7. dxc5 {[%emt 0:04:38]} dxc5 {[%emt 0:01:32]} 8. Nc3 {[%emt 0:00:49]} Nc6 {[%emt 0:01:09]} 9. Be3 {[%emt 0:03:53]} Nd7 {[%emt 0:07:49]} 10. Qc1 {[%emt 0:06:00]} a6 {[%emt 0:10:35]} 11. Rd1 {[%emt 0:05:11]} Qa5 {[%emt 0:05:27]} 12. Bh6 {[%emt 0:08:04]} Nb6 {[%emt 0:14:34]} 13. Ne4 {[%emt 0:07:18]} Nd7 {[%emt 0:19:29]} 14. Rd5 {[%emt 0:06:21]} f5 {[%emt 0:03:36]} 15. Bxg7 {[%emt 0:09:18]} Kxg7 {[%emt 0:04:39]} 16. Nfg5 {[%emt 0:03:20]} fxe4 {[%emt 0:04:14]} 17. Ne6+ {[%emt 0:02:45]} Kg8 {[%emt 0:00:13]} 18. Nxf8 {[%emt 0:05:10]} Nxf8 {[%emt 0:00:21]} 19. Qe3 {[%emt 0:09:46]} Qb4 {[%emt 0:05:28]} 20. Rxc5 {[%emt 0:05:12]} Qxb2 {[%emt 0:02:26]} 21. Rd1 {[%emt 0:00:15]} Qc2 {[%emt 0:04:09]} 22. Ra1 {[%emt 0:01:49]} Bf5 {[%emt 0:02:32]} 23. Qg5 {[%emt 0:04:00]} Ne6 {[%emt 0:01:20]} 24. Qe3 {[%emt 0:02:01]} Nxc5 {[%emt 0:00:07]} 25. Qxc5 {[%emt 0:00:08]} Qxe2 {[%emt 0:00:27]} 26. Qd5+ {[%emt 0:01:15]} Kg7 {[%emt 0:00:18]} 27. Bf1 {[%emt 0:01:24]} Qb2 {[%emt 0:00:44]} 28. Re1 {[%emt 0:00:28]} Qd4 {[%emt 0:02:37]} 29. Rb1 {[%emt 0:01:33]} e3 {[%emt 0:02:26]} 30. Qxd4+ {[%emt 0:01:04]} Nxd4 {[%emt 0:00:19]} 31. Rxb7 {[%emt 0:00:47]} e2 {[%emt 0:00:33]} 32. Rxe7+ {[%emt 0:00:26]} Kf6 {[%emt 0:00:06]} 33. Re3 {[%emt 0:00:17]} Nf3+ {[%emt 0:00:24]} 0-1